Cogmind - Beta 13 @@@ ROGUE MODE // 2024.05.14 @ 21:18:07 Player: na-3J Result: Destroyed by Y-45 Defender with Heavy Assault Rifle Performance ------------- Evolutions (0) 0 Regions Visited (2) 400 Robots Destroyed (16) 80 Value Destroyed (507) 507 Prototype IDs (0) 0 Alien Tech Used (0) 0 Bonus (0) 0 TOTAL SCORE: 987 Bonus ------- None Cogmind --------- Core Integrity 0/250 Matter 274/300 Energy 53/100 System Corruption 0% Temperature Warning (369) Movement Core (250) Ox4 Location -10/Mines Parts ------- > --- POWER (1) -------- (None) > --- PROPULSION (2) --- (None) > --- UTILITY (2) ------ Medium Storage Unit Structural Scanner > --- WEAPON (2) ------- Light Assault Rifle Light Assault Rifle > --- INVENTORY (10) --- Light Ion Engine Compact Wheel Compact Wheel Medium Matter Pod (100) Large Matter Pod (13) Seismic Detector EM Pulse Gun Particle Gun Particle Gun Light Assault Rifle Peak State ------------ > --- POWER ------------ Light Ion Engine > --- PROPULSION ------- Aluminum Leg Aluminum Leg > --- UTILITY ---------- Medium Storage Unit Structural Scanner > --- WEAPON ----------- Particle Gun Particle Gun > --- INVENTORY -------- Light Ion Engine Compact Wheel Compact Wheel Medium Matter Pod Large Matter Pod Seismic Detector EM Pulse Gun Light Assault Rifle Light Assault Rifle Light Assault Rifle [Rating: 10] Favorites ----------- Power Ion Engine Engine Ion Engine Propulsion Light Treads Treads Light Treads Leg Aluminum Leg Utility Medium Storage Unit Device Structural Scanner Storage Medium Storage Unit Weapon Particle Gun Energy Gun Particle Gun Ballistic Gun Light Assault Rifle Build | -11 -10 -10 ------- Run | Yrd Mat Min Slots Evolved . | . . . Power . | . . . Propulsion . | . . . Utility . | . . . Weapon . | . . . Parts Attached 27 | 6 10 11 Power 4 | 1 1 2 Engine 4 | 1 1 2 Core . | . . . Reactor . | . . . Propulsion 6 | 2 2 2 Treads 4 | 2 2 . Leg 2 | . . 2 Wheel . | . . . Hover . | . . . Flight . | . . . Utility 3 | 1 2 . Device 1 | . 1 . Storage 2 | 1 1 . Processor . | . . . Hackware . | . . . Protection . | . . . Artifact . | . . . Weapon 14 | 2 5 7 Energy Gun 6 | 1 2 3 Energy Cannon . | . . . Ballistic Gun 8 | 1 3 4 Ballistic Cannon . | . . . Launcher . | . . . Special Weapon . | . . . Impact Weapon . | . . . Slashing Weapon . | . . . Piercing Weapon . | . . . Special Melee Weapon . | . . . Unidentified Prototypes . | . . . Parts Lost 6 | . . 6 Power 2 | . . 2 Propulsion 3 | . . 3 Utility . | . . . Weapon 1 | . . 1 Highest Loss Streak 3 | . . 3 To Critical Strikes . | . . . Average Slot Usage (%) 94 | . 92 96 Engine 13 | . 14 13 Treads 14 | . 27 3 Leg 11 | . . 21 Device 11 | . 7 14 Storage 14 | . 14 14 Energy Gun 20 | . 17 22 Ballistic Gun 7 | . 10 5 Naked Turns . | . . . Heaviest Build 22 | 13 19 22 Greatest Support 40 | 40 40 40 Greatest Overweight (x) 1 | . . 1 Average Overweight (x) . | . . . Largest Inventory Capacity 10 | 8 10 10 Average Capacity 9 | 7 9 10 Most Carried 10 | 5 8 10 Average Carried 6 | 3 5 7 Final Capacity 10 | 8 10 10 Final Carried 10 | 4 8 10 Class Distribution -------------------- 59% | Mutant 40% | Scavenger-Mutant Dominant Class ---------------- Mutant | -10/Materials Scavenger-Mutant | -10/Mines Resources | -11 -10 -10 ----------- Run | Yrd Mat Min Matter Collected 624 | 222 188 214 Remotely . | . . . Salvage Created 602 | 90 244 268 Parts 31 | 1 9 21 Haulers Intercepted . | . . . Recyclers Shooed . | . . . Parts Field Recycled . | . . . Retrieved Matter . | . . . Parts Self-Destructed . | . . . Prevented . | . . . Kills | -11 -10 -10 ------- Run | Yrd Mat Min Combat Hostiles Destroyed 15 | . 6 9 Melee 1 | . . 1 Guns 14 | . 6 8 Classes Destroyed 4 | 1 1 2 Recycler 1 | 1 . . Swarmer 3 | . . 3 Grunt 11 | . 6 5 Sentry 1 | . . 1 Best Kill Streak 3 | 1 2 3 Combat Bots Only 3 | . 2 3 Max Kills in Single Turn 1 | 1 1 1 Gunslinging . | . . . Exploded . | . . . Melee 1 | . . 1 Uniques/NPCs Destroyed . | . . . Combat | -11 -10 -10 -------- Run | Yrd Mat Min Hostile Shots Fired 144 | . 43 101 Missed 40 | . 16 24 Damage Taken 1363 | . 370 993 Core 264 | . 23 241 Absorbed by Shields . | . . . Regen/Repaired (Parts) 64 | . 64 . Core Remaining (%) 100 | 100 . . Volleys Fired 62 | 3 22 37 Largest 2 | 2 2 2 Hottest 130 | 60 60 130 Shots Fired 123 | 6 44 73 Gun 123 | 6 44 73 Cannon . | . . . Launcher . | . . . Special . | . . . Kinetic 89 | 3 39 47 Thermal 26 | . . 26 Explosive . | . . . Electromagnetic 8 | 3 5 . Robot Hit Streak 16 | 1 7 16 Robot Miss Streak 4 | 1 3 4 Penetration Max . | . . . Secondary Targets 4 | . 2 2 Max Gunslinging Chain 1 | . 1 1 Shots Hit Robots 85 | 3 29 53 Core Hits 34 | . 16 18 Critical Kills . | . . . Critical Parts Destroyed . | . . . Critical Strikes 1 | . . 1 Burn 1 | . . 1 Melee Attacks . | . . . Impact . | . . . Slashing . | . . . Piercing . | . . . Sneak Attacks . | . . . Combat Hostiles . | . . . Follow-up Attacks . | . . . Damage Inflicted 916 | 88 267 561 Guns 865 | 40 267 558 Cannons . | . . . Explosions 48 | 48 . . Melee . | . . . Ramming 3 | . . 3 Kinetic 530 | . 237 293 Thermal 313 | 48 . 265 Explosive . | . . . Electromagnetic 70 | 40 30 . Impact . | . . . Slashing . | . . . Piercing . | . . . Highest Corruption . | . . . Average Corruption . | . . . Corruption Purged . | . . . Corruption Blocked . | . . . Overload Shots . | . . . Overflow Damage 23 | 23 . . Projectiles . | . . . Explosions 23 | 23 . . Melee . | . . . Knockbacks . | . . . Impact . | . . . Kinetic . | . . . Secondary . | . . . Self-Inflicted Damage . | . . . Shots . | . . . Rammed 2 | . . 2 Targets Rammed 4 | . . 4 Kicked 1 | . . 1 Crushed 1 | . . 1 Highest Temperature 438 | 20 31 438 Average Temperature 126 | 15 14 170 Received Heat Transfer 708 | . 228 480 Effects 7 | . . 7 Shutdowns 1 | . . 1 Energy Bleed 2 | . . 2 Interference 4 | . . 4 Siege Activations . | . . . Robots Corrupted . | . . . Combat Hostiles . | . . . Parts Fried . | . . . Impact Corruptions . | . . . Robots Melted . | . . . Combat Hostiles . | . . . Parts Melted . | . . . Heat Transferred 716 | 50 . 666 Parts Sabotaged . | . . . Parts Stolen . | . . . Parts Stripped . | . . . Power Chain Reactions 1 | 1 . . Alert | -11 -10 -10 ------- Run | Yrd Mat Min Peak Influence 181 | 5 128 181 Initial 11 | . 3 11 Average 74 | 1 78 87 Maximum Alert Level . | . . . Low Security (%) 100 | 100 100 100 Level 1 . | . . . Level 2 . | . . . Level 3 . | . . . Level 4 . | . . . Level 5 . | . . . High Security . | . . . Max Security . | . . . Squads Dispatched 1 | . 1 . Investigation 1 | . 1 . Extermination . | . . . Reinforcement . | . . . Assault . | . . . Garrison . | . . . Intercept . | . . . Searches Triggered . | . . . Construction Impeded . | . . . Haulers Reinforced . | . . . Active Scanning Responses . | . . . Cargo Convoy Interrupts . | . . . Stealth | -11 -10 -10 --------- Run | Yrd Mat Min Distress Signals . | . . . Communications Jammed . | . . . Distress Signals . | . . . Times Spotted 18 | . 7 11 Peak Tracking Total 4 | . 3 4 Tactical Retreats . | . . . Traps | -11 -10 -10 ------- Run | Yrd Mat Min Traps Triggered 2 | . 2 . Indirectly . | . . . Trap Hack Attempts . | . . . Triggered . | . . . Disarmed . | . . . Reprogrammed . | . . . Reused . | . . . Traps Extracted . | . . . Installed . | . . . Triggered . | . . . Machines | -11 -10 -10 ---------- Run | Yrd Mat Min Machines Disabled 1 | . . 1 Max in Single Turn 1 | . . 1 Machines Repaired . | . . . Machines Dismantled . | . . . Machines Sabotaged . | . . . Overloaded Fab Kills . | . . . Hacking | -11 -10 -10 --------- Run | Yrd Mat Min Machines Accessed 3 | . 3 . Terminals 2 | . 2 . Fabricators . | . . . Repair Stations 1 | . 1 . Recycling Units . | . . . Scanalyzers . | . . . Garrison Access . | . . . Total Hacks 8 | . 8 . Successful 4 | . 4 . Failed 4 | . 4 . Catastrophic . | . . . Database Lockouts . | . . . Manual . | . . . Terminals 5 | . 5 . Fabricators . | . . . Repair Stations 3 | . 3 . Recycling Units . | . . . Scanalyzers . | . . . Garrison Access . | . . . Terminal Hacks 2 | . 2 . Record 1 | . 1 . Investigation Status 1 | . 1 . Fabricator Hacks . | . . . Repair Station Hacks 2 | . 2 . Scan Component 1 | . 1 . Repair 1 | . 1 . Recycling Unit Hacks . | . . . Scanalyzer . | . . . Garrison Access Hacks . | . . . Unauthorized Hacks . | . . . Terminals . | . . . Fabricators . | . . . Repair Stations . | . . . Recycling Units . | . . . Scanalyzers . | . . . Garrison Access . | . . . Data Cores Recovered . | . . . Used . | . . . Hacking Detections 2 | . 2 . Full Trace Events . | . . . Feedback Events . | . . . Feedback Blocked . | . . . Robot Schematics Acquired . | . . . Robots Built . | . . . Authchips . | . . . Time . | . . . Total Robot Build Rating . | . . . Part Schematics Acquired . | . . . Parts Built . | . . . Authchips . | . . . Time . | . . . Total Part Build Rating . | . . . Parts Repaired 1 | . 1 . Time 26 | . 26 . Parts Recycled . | . . . Recycled Matter . | . . . Retrieved Matter . | . . . Retrieved Components . | . . . Parts Scanalyzed . | . . . Part Schematics Acquired . | . . . Parts Damaged . | . . . Bothacking | -11 -10 -10 ------------ Run | Yrd Mat Min Used RIF Installer . | . . . Robots Hacked . | . . . Non-combat . | . . . Combat . | . . . Robot Hacks Applied . | . . . Relay Couplers Released . | . . . Fabnet Peak Effective % . | . . . Robots Rewired . | . . . Allies Hacked . | . . . Hacks Repelled . | . . . Allies | -11 -10 -10 -------- Run | Yrd Mat Min Total Allies . | . . . Largest Group . | . . . Highest-Rated Group . | . . . Highest-Rated Ally . | . . . Total Orders . | . . . Ally Attacks . | . . . Total Damage . | . . . Kills . | . . . Allies Corrupted . | . . . Allies Melted . | . . . Intel | -11 -10 -10 ------- Run | Yrd Mat Min Robot Analysis Total . | . . . Derelict Logs Recovered 1 | . . 1 Drone Launches . | . . . Drone Recoveries . | . . . Exploration | -11 -10 -10 ------------- Run | Yrd Mat Min Turns Passed 1109 | 120 474 515 Spaces Moved 507 | 72 215 220 Core 18 | 18 . . Treads 284 | 54 215 15 Legs 205 | . . 205 Wheels . | . . . Hover . | . . . Flight . | . . . Fastest Speed 50 | 50 160 120 Average Speed 158 | 132 160 164 Slowest Speed 190 | 160 160 190 Overloaded Moves . | . . . Propulsion Burnouts . | . . . Robots Hopped . | . . . Cave-ins Triggered . | . . . Exploration Rate (%) 30 | 6 39 45 Regions Visited 2 Branch Regions 1 Pre-discovered Areas 2 | . . 2 Known Exits Taken . | . . . Unknown Exits Taken 2 | 1 1 . Scrap Searched 1 | . . 1 Spaces Dug . | . . . Terrain Destroyed 4 | 4 . . Melee . | . . . Projectile . | . . . AOE 4 | 4 . . Terrain Rammed . | . . . Walls Destroyed . | . . . Machines Disabled . | . . . Actions | -11 -10 -10 --------- Run | Yrd Mat Min Total 705 | 92 307 306 Wait 63 | . 42 21 Move 505 | 71 214 220 Hop . | . . . Pick Up 33 | 11 13 9 Fast Attach . | . . . Attach 14 | 6 4 4 Detach . | . . . Swap 13 | . 6 7 Drop 11 | 1 6 4 Fire 62 | 3 22 37 Melee . | . . . Ram . | . . . Kick 1 | . . 1 Crush 3 | . . 3 Escape Stasis . | . . . Rewire . | . . . Trap . | . . . Miscellaneous . | . . . Route ------- -11/Scrapyard -10/Materials -10/Mines History --------- Turn | Location | Event 3 | -11/Scrapyard | Discovered new exit (range 15) 121 | -11/Scrapyard | Entered Materials 309 | -10/Materials | Build established: Mutant 419 | -10/Materials | Repaired Lgt. Treads 572 | -10/Materials | Discovered new exit (range 10) 595 | -10/Materials | Entered Mines 695 | -10/Mines | Lost 3 parts (1p1n1w) 771 | -10/Mines | Learned location of Storage (-8) 966 | -10/Mines | Core integrity fell below 50% 1011 | -10/Mines | Build established: Scavenger-Mutant 1100 | -10/Mines | Core integrity fell below 20% 1110 | -10/Mines | Destroyed by Y-45 Defender with Heavy Assault Rifle Last Messages --------------- Found Seismic Detector. Found 25 Matter. Acquired 17 matter. Acquired Lrg. Matter Pod. Acquired 8 matter. Acquired Seismic Detector. Acquired Lgt. Assault Rifle. Machine disabled. Critical hit (Burn: +37). Aluminum Leg destroyed. G-34 Mercenary destroyed. Y-45 Defender destroyed. Switching to secondary target: Y-45 Defender. Lgt. Ion Engine destroyed. Aluminum Leg destroyed. Overheating: System interference. Particle Gun temporarily disabled. Structural Scanner temporarily disabled. Lgt. Assault Rifle temporarily disabled. Overheating: Energy bleed (-5). Map ----- +----------------------------------------------------+ | | | | | | | | | | | | | | | | | | | | | | | | | | | ?????????????????????????????????????????????????? | | ?????????????????????????????????????????????????? | | ?????????????????????????????????????????????????? | | ?????????????????????????????????????????????????? | | ?????????????????????????????????????????????????? | | ????????????????????????########?????????????????? | | ????????????????????????#########????????????????? | | ????????????????????????## "###????????????????? | | ???????????#######??????#[! !!##????????????????? | | ??????????#########???????! !!##????????????????? | | ? #####??#### ###???#### ###????????????????? | | ########?### ##???#####++####????????????????? | | ### ###?## ##???##=@%! ##### ##??????????? | | ## ##?## ###???## !Y* g##### ##??????????? | | ## ##?## ###????## %[##??????????? | | ### ##### ####????## ######??????????? | | ### ###### ###?????## ## ######??????????? | | ## ##### ####????### #######??????????????? | | ## ##?### ####???### #########??????????????? | | # ##?### ####???## ####???????????????????? | | ##?## ######## ##?????????????????????? | | ###### ####### ##?????????????????????? | | ###### ### ##?????????????????????? | | ##### ##?????????????????????? | | #### ##?????????????????????? | | ### #### ####?????????????????????? | | #### ##### ####?????????????????????? | | # #### ##### ##???????????????????????? | | # #### ##?## ##???????????????????????? | | # #### ### ##?## #???????????????????????? | | ## #### ##?## ????????????????????????? | | = * ##### ##?## ????????????????????????? | | ## ### ##?# ????????????????????????? | | ####[ ###? ##?? ????????????????????????? | | ##### ###?? ### ?? ????????????????????????? | | ###########?? ??? ????????????????????????? | | ##########?# ??? ?? ???????????????????????? | +----------------------------------------------------+ Best States ------------- Heat Dissipation 25 Energy Generation 10 Energy Capacity 250 Matter Stores 300 Matter Capacity 300 Sight Range 16 Terrain Scan Density 10 Evasion (%) 55 Recoil Reduction 2 Item Schematics ----------------- None Robot Schematics ------------------ None Fabricated ------------ Nothing Alien Tech Used ----------------- None Achievements -------------- Crack Shot Challenges ------------ None Game ------ Seed BurstControlAnalyzer Manual? 0 Play Time 00:16:35 Cumulative 1.1 hours Start 2024.05.14 @ 21:01:15 End 2024.05.14 @ 21:18:07 Sessions 1 Manual Loads 0 Difficulty Rogue Special Mode None Game No. 4 Rogue 4 Adventurer 0 Explorer 0 Win Type - Total 0 Types 0/0/0/0/0/0/0/0/0 Lore% 1 Gallery% 3 Achievement% 3 Wizard Run 0 Options --------- Layout 0 ASCII 0 Keyboard 0 Movement Numpad Keybinds 0 Fullscreen 1 Font 24/Smallcaps Map View 76x50 Zoom Use 0% Tactical HUD 0 Map Filters NONE Filters NONE Steam 1 RUN: 4fc2047c-dccd-4fd0-9e8f-4560a5e4d5ad